[Event "*** Titled Tuesday Blitz"]
[Site "Chess.com"]
[Date "2020.03.03"]
[Round "8"]
[White "guillembaches"]
[Black "JozefKneht"]
[Result "1-0"]
[WhiteElo "2442"]
[BlackElo "2548"]
[TimeControl "180+1"]
[EndTime "14:34:41 PST"]
[Termination "guillembaches won by resignation"]

1. e4 {[%clk 0:03:00.9]} 1... e5 {[%clk 0:02:58.7]} 2. Nf3 {[%clk 0:03:01.1]}
2... Nc6 {[%clk 0:02:58.3]} 3. Nc3 {[%clk 0:03:01.3]} 3... Nf6 {[%clk
0:02:57.6]} 4. d4 {[%clk 0:03:01.9]} 4... exd4 {[%clk 0:02:58.4]} 5. Nxd4 {[%clk
0:03:02.5]} 5... Bb4 {[%clk 0:02:57.7]} 6. Nxc6 {[%clk 0:03:02.7]} 6... bxc6
{[%clk 0:02:58.6]} 7. Bd3 {[%clk 0:03:03.1]} 7... O-O {[%clk 0:02:58.7]} 8. O-O
{[%clk 0:03:02.2]} 8... d5 {[%clk 0:02:59.1]} 9. Bd2 {[%clk 0:03:02.6]} 9...
Bxc3 {[%clk 0:02:43.7]} 10. Bxc3 {[%clk 0:03:03.5]} 10... Nxe4 {[%clk
0:02:43.9]} 11. Bxe4 {[%clk 0:03:02.1]} 11... dxe4 {[%clk 0:02:44]} 12. Qe2
{[%clk 0:03:02.3]} 12... Bf5 {[%clk 0:02:41.7]} 13. Rad1 {[%clk 0:03:02.2]}
13... Qe7 {[%clk 0:02:36.7]} 14. Qe3 {[%clk 0:02:54.8]} 14... Qe6 {[%clk
0:02:31.2]} 15. Rd4 {[%clk 0:02:46.2]} 15... Rfd8 {[%clk 0:02:23.5]} 16. Rxd8+
{[%clk 0:02:41.6]} 16... Rxd8 {[%clk 0:02:22.1]} 17. Qxa7 {[%clk 0:02:41.6]}
17... h5 {[%clk 0:02:13.6]} 18. Qxc7 {[%clk 0:02:40]} 18... Rd7 {[%clk
0:02:12.2]} 19. Qg3 {[%clk 0:02:33.5]} 19... Qh6 {[%clk 0:02:04.6]} 20. Qe5
{[%clk 0:02:19.7]} 20... Qg6 {[%clk 0:02:03]} 21. a4 {[%clk 0:02:13.1]} 21... h4
{[%clk 0:02:02.4]} 22. a5 {[%clk 0:02:05.3]} 22... Rd5 {[%clk 0:01:56.2]} 23.
Qb8+ {[%clk 0:01:47.3]} 23... Kh7 {[%clk 0:01:55.3]} 24. Ra1 {[%clk 0:01:40.3]}
24... e3 {[%clk 0:01:53.4]} 25. Qf4 {[%clk 0:01:29.2]} 25... h3 {[%clk
0:01:44.3]} 26. Qg3 {[%clk 0:01:20.8]} 26... e2 {[%clk 0:01:32.1]} 27. Qxg6+
{[%clk 0:01:13]} 27... Kxg6 {[%clk 0:01:28.7]} 28. Re1 {[%clk 0:01:12.8]} 28...
Bxc2 {[%clk 0:01:13.5]} 29. Rxe2 {[%clk 0:01:08.6]} 29... Rd1+ {[%clk
0:01:08.5]} 30. Re1 {[%clk 0:01:07.7]} 30... Rxe1+ {[%clk 0:01:07.6]} 31. Bxe1
{[%clk 0:01:08.6]} 31... hxg2 {[%clk 0:01:07]} 32. Kxg2 {[%clk 0:00:39.3]} 32...
Bd3 {[%clk 0:01:06]} 33. Kg3 {[%clk 0:00:36]} 33... Kf5 {[%clk 0:01:06.3]} 34.
Bc3 {[%clk 0:00:33.7]} 34... g6 {[%clk 0:01:05.4]} 35. h4 {[%clk 0:00:33.5]}
35... Be2 {[%clk 0:01:03.2]} 36. f4 {[%clk 0:00:32.3]} 36... Ke4 {[%clk
0:01:01.9]} 37. Kf2 {[%clk 0:00:30.8]} 37... Bb5 {[%clk 0:01:00.4]} 38. Kg3
{[%clk 0:00:30.7]} 38... c5 {[%clk 0:00:56.8]} 39. Kg4 {[%clk 0:00:30.3]} 39...
c4 {[%clk 0:00:54.5]} 40. Kg5 {[%clk 0:00:27.4]} 40... Ba6 {[%clk 0:00:46.9]}
41. f5 {[%clk 0:00:24.5]} 41... gxf5 {[%clk 0:00:46.1]} 42. h5 {[%clk
0:00:24.6]} 42... f4 {[%clk 0:00:46.6]} 43. h6 {[%clk 0:00:24.6]} 43... f3
{[%clk 0:00:47.4]} 44. Be1 {[%clk 0:00:17.9]} 44... f6+ {[%clk 0:00:44]} 45.
Kxf6 {[%clk 0:00:17.7]} 45... c3 {[%clk 0:00:44.9]} 46. bxc3 {[%clk 0:00:17]}
46... Ke3 {[%clk 0:00:44.5]} 47. h7 {[%clk 0:00:17]} 47... Ke2 {[%clk
0:00:45.4]} 48. Bh4 {[%clk 0:00:16.6]} 1-0

[Event "*** Titled Tuesday Blitz"]
[Site "Chess.com"]
[Date "2020.03.03"]
[Round "8"]
[White "violetflower04"]
[Black "ZEN-22"]
[Result "1-0"]
[WhiteElo "2247"]
[BlackElo "2378"]
[TimeControl "180+1"]
[EndTime "14:34:41 PST"]
[Termination "violetflower04 won by checkmate"]

1. b3 {[%clk 0:03:00.9]} 1... c6 {[%clk 0:02:59.9]} 2. Bb2 {[%clk 0:03:00.7]}
2... d5 {[%clk 0:03:00.8]} 3. e3 {[%clk 0:03:01.4]} 3... f6 {[%clk 0:03:01.2]}
4. Nf3 {[%clk 0:03:00.5]} 4... e5 {[%clk 0:03:01.5]} 5. d4 {[%clk 0:02:57.5]}
5... e4 {[%clk 0:03:01]} 6. Nfd2 {[%clk 0:02:58.2]} 6... f5 {[%clk 0:03:01.4]}
7. c4 {[%clk 0:02:57.8]} 7... Nf6 {[%clk 0:03:01.4]} 8. Be2 {[%clk 0:02:55.7]}
8... Bd6 {[%clk 0:03:01.7]} 9. h3 {[%clk 0:02:55.6]} 9... h5 {[%clk 0:03:01.9]}
10. Nc3 {[%clk 0:02:52.8]} 10... a6 {[%clk 0:03:01.4]} 11. Qc2 {[%clk
0:02:50.6]} 11... b5 {[%clk 0:03:00.9]} 12. cxd5 {[%clk 0:02:37.1]} 12... cxd5
{[%clk 0:03:00.5]} 13. Kf1 {[%clk 0:02:22.3]} 13... Be6 {[%clk 0:02:57.9]} 14.
f3 {[%clk 0:02:18.5]} 14... Nbd7 {[%clk 0:02:57.3]} 15. a3 {[%clk 0:01:52.7]}
15... Rc8 {[%clk 0:02:51.5]} 16. b4 {[%clk 0:01:51.5]} 16... f4 {[%clk
0:02:46.9]} 17. fxe4 {[%clk 0:01:35.7]} 17... fxe3 {[%clk 0:02:46.4]} 18. e5
{[%clk 0:01:14.8]} 18... Nxe5 {[%clk 0:02:45.4]} 19. dxe5 {[%clk 0:01:10.9]}
19... Bxe5 {[%clk 0:02:46.3]} 20. Nf3 {[%clk 0:01:08.1]} 20... Bg3 {[%clk
0:02:35.6]} 21. Qg6+ {[%clk 0:01:06.1]} 21... Bf7 {[%clk 0:02:35]} 22. Qxg3
{[%clk 0:01:06.5]} 22... d4 {[%clk 0:02:35.3]} 23. Qe5+ {[%clk 0:00:57.3]} 23...
Kf8 {[%clk 0:02:33.7]} 24. Nxd4 {[%clk 0:00:55]} 24... Kg8 {[%clk 0:02:30.3]}
25. Nf5 {[%clk 0:00:48.9]} 25... Kh7 {[%clk 0:02:18.8]} 26. Rd1 {[%clk
0:00:48.5]} 26... Qf8 {[%clk 0:02:17.3]} 27. Ne4 {[%clk 0:00:41.5]} 27... Nxe4
{[%clk 0:02:09.5]} 28. Qxe4 {[%clk 0:00:42.4]} 28... Bg6 {[%clk 0:02:09.7]} 29.
g4 {[%clk 0:00:40.5]} 29... Re8 {[%clk 0:02:04.9]} 30. Qf3 {[%clk 0:00:24.3]}
30... Qf7 {[%clk 0:02:02.1]} 31. Bxg7 {[%clk 0:00:22.6]} 31... Rhg8 {[%clk
0:01:58.3]} 32. Bd4 {[%clk 0:00:18.6]} 32... Qb3 {[%clk 0:01:58.6]} 33. gxh5
{[%clk 0:00:17.3]} 33... Bf7 {[%clk 0:01:56.3]} 34. Qf4 {[%clk 0:00:17]} 34...
Re6 {[%clk 0:01:55.1]} 35. Rg1 {[%clk 0:00:16.2]} 35... Rxg1+ {[%clk 0:01:53.7]}
36. Kxg1 {[%clk 0:00:17.1]} 36... Bxh5 {[%clk 0:01:49.7]} 37. Qg5 {[%clk
0:00:16.8]} 37... Rg6 {[%clk 0:01:47.8]} 38. Qxg6+ {[%clk 0:00:13.7]} 38... Bxg6
{[%clk 0:01:47.4]} 39. Nxe3 {[%clk 0:00:14.6]} 39... Be4 {[%clk 0:01:47.1]} 40.
Kf2 {[%clk 0:00:14.5]} 40... Qf7+ {[%clk 0:01:46.6]} 41. Ke1 {[%clk 0:00:12.3]}
41... Qf4 {[%clk 0:01:47.1]} 42. Kd2 {[%clk 0:00:11]} 42... Bf3 {[%clk
0:01:47.3]} 43. Rf1 {[%clk 0:00:10.9]} 43... Qxd4+ {[%clk 0:01:47.8]} 44. Bd3+
{[%clk 0:00:11.2]} 44... Kh6 {[%clk 0:01:45.7]} 45. Rxf3 {[%clk 0:00:11.5]}
45... Qb2+ {[%clk 0:01:45]} 46. Bc2 {[%clk 0:00:11]} 46... Kg5 {[%clk
0:01:42.7]} 47. Rf7 {[%clk 0:00:06.6]} 47... Qa1 {[%clk 0:01:41.6]} 48. Rf5+
{[%clk 0:00:05.3]} 48... Kh4 {[%clk 0:01:42.5]} 49. Ke2 {[%clk 0:00:04.5]} 49...
Kg3 {[%clk 0:01:43.4]} 50. Rf3+ {[%clk 0:00:04.8]} 50... Kh2 {[%clk 0:01:43.5]}
51. Ng4+ {[%clk 0:00:05.5]} 51... Kg1 {[%clk 0:01:43.2]} 52. Be4 {[%clk
0:00:04.5]} 52... Kg2 {[%clk 0:01:44.1]} 53. Rf2+ {[%clk 0:00:04.6]} 53... Kg3
{[%clk 0:01:43.6]} 54. Ne3 {[%clk 0:00:04.6]} 54... Kh4 {[%clk 0:01:44.5]} 55.
Rf4+ {[%clk 0:00:04.6]} 55... Kg5 {[%clk 0:01:43.8]} 56. Kf3 {[%clk 0:00:05.3]}
56... Qh1+ {[%clk 0:01:42]} 57. Ng2 {[%clk 0:00:05.7]} 57... Qf1+ {[%clk
0:01:41.2]} 58. Kg3 {[%clk 0:00:05.7]} 58... Qc1 {[%clk 0:01:42.1]} 59. Rg4+
{[%clk 0:00:05.4]} 59... Kf6 {[%clk 0:01:43]} 60. Nf4 {[%clk 0:00:05.9]} 60...
Ke5 {[%clk 0:01:43.7]} 61. Nd3+ {[%clk 0:00:06.1]} 61... Kd4 {[%clk 0:01:44.6]}
62. Nxc1 {[%clk 0:00:07]} 62... Ke3 {[%clk 0:01:44.7]} 63. Rg6 {[%clk
0:00:07.5]} 63... a5 {[%clk 0:01:44.4]} 64. bxa5 {[%clk 0:00:08]} 64... Kxe4
{[%clk 0:01:44.2]} 65. a6 {[%clk 0:00:08]} 65... Kd4 {[%clk 0:01:43.5]} 66. a7
{[%clk 0:00:08.5]} 66... Kc5 {[%clk 0:01:43.8]} 67. a8=Q {[%clk 0:00:08.6]}
67... b4 {[%clk 0:01:44.7]} 68. Rg5+ {[%clk 0:00:09]} 68... Kd4 {[%clk
0:01:44.3]} 69. Qd5+ {[%clk 0:00:09.3]} 69... Kc3 {[%clk 0:01:45.2]} 70. Qd3+
{[%clk 0:00:09.7]} 70... Kb2 {[%clk 0:01:44.1]} 71. Qb3+ {[%clk 0:00:10]} 71...
Ka1 {[%clk 0:01:45]} 72. Qa2# {[%clk 0:00:09.5]} 1-0

[Event "*** Titled Tuesday Blitz"]
[Site "Chess.com"]
[Date "2020.03.03"]
[Round "8"]
[White "enriquetejedor"]
[Black "VALPARAISO37"]
[Result "1-0"]
[WhiteElo "2557"]
[BlackElo "2414"]
[TimeControl "180+1"]
[EndTime "14:34:43 PST"]
[Termination "enriquetejedor won by resignation"]

1. e4 {[%clk 0:03:00.9]} 1... e5 {[%clk 0:02:59.2]} 2. Nf3 {[%clk 0:03:00.3]}
2... Nc6 {[%clk 0:02:59.4]} 3. Bb5 {[%clk 0:03:00.1]} 3... g6 {[%clk 0:02:58.9]}
4. O-O {[%clk 0:02:53.7]} 4... Bg7 {[%clk 0:02:58.9]} 5. c3 {[%clk 0:02:51.5]}
5... Nge7 {[%clk 0:02:58.6]} 6. d4 {[%clk 0:02:49.9]} 6... exd4 {[%clk
0:02:58.9]} 7. cxd4 {[%clk 0:02:50]} 7... O-O {[%clk 0:02:59.5]} 8. Nc3 {[%clk
0:02:49.7]} 8... a6 {[%clk 0:02:58]} 9. Ba4 {[%clk 0:02:46]} 9... d6 {[%clk
0:02:54.6]} 10. h3 {[%clk 0:02:42.2]} 10... h6 {[%clk 0:02:52.5]} 11. Be3 {[%clk
0:02:37.9]} 11... Kh7 {[%clk 0:02:52.1]} 12. d5 {[%clk 0:02:34.3]} 12... Na5
{[%clk 0:02:42.1]} 13. Nd2 {[%clk 0:02:29.6]} 13... b5 {[%clk 0:02:40.8]} 14.
Bc2 {[%clk 0:02:27.7]} 14... c5 {[%clk 0:02:40.6]} 15. dxc6 {[%clk 0:02:24.4]}
15... Nexc6 {[%clk 0:02:40.8]} 16. Rb1 {[%clk 0:02:17.1]} 16... Be6 {[%clk
0:02:34.1]} 17. Nd5 {[%clk 0:02:14.7]} 17... Ne5 {[%clk 0:02:24.2]} 18. b3
{[%clk 0:02:10.3]} 18... Nec6 {[%clk 0:02:23.5]} 19. f4 {[%clk 0:02:04.5]} 19...
f5 {[%clk 0:02:23.4]} 20. Nf3 {[%clk 0:01:59.2]} 20... fxe4 {[%clk 0:02:15.3]}
21. Bxe4 {[%clk 0:01:54.7]} 21... Bf5 {[%clk 0:02:15.6]} 22. Bxf5 {[%clk
0:01:47.5]} 22... Rxf5 {[%clk 0:02:15.2]} 23. Rc1 {[%clk 0:01:43.5]} 23... Nd4
{[%clk 0:01:59.8]} 24. Nf6+ {[%clk 0:00:54]} 24... Rxf6 {[%clk 0:01:27.2]} 25.
Bxd4 {[%clk 0:00:52.7]} 25... Rxf4 {[%clk 0:01:20]} 26. Bxg7 {[%clk 0:00:52.7]}
26... Kxg7 {[%clk 0:01:18.4]} 27. Nd4 {[%clk 0:00:48.8]} 27... Rxf1+ {[%clk
0:01:13.8]} 28. Qxf1 {[%clk 0:00:49.7]} 28... Qb6 {[%clk 0:01:06]} 29. Rc7+
{[%clk 0:00:48.7]} 29... Qxc7 {[%clk 0:01:01.7]} 30. Ne6+ {[%clk 0:00:47.9]}
30... Kg8 {[%clk 0:00:59.7]} 31. Nxc7 {[%clk 0:00:48.8]} 31... Rc8 {[%clk
0:00:57.5]} 32. Nd5 {[%clk 0:00:45.4]} 32... Rf8 {[%clk 0:00:53.1]} 33. Ne7+
{[%clk 0:00:42.9]} 33... Kg7 {[%clk 0:00:51.5]} 34. Qa1+ {[%clk 0:00:42.4]}
34... Kf7 {[%clk 0:00:49.9]} 35. Nd5 {[%clk 0:00:41.8]} 35... Nc6 {[%clk
0:00:49.9]} 36. Qf6+ {[%clk 0:00:40.6]} 36... Ke8 {[%clk 0:00:50.5]} 37. Qe6+
{[%clk 0:00:39.8]} 37... Kd8 {[%clk 0:00:49]} 38. Qxd6+ {[%clk 0:00:39.9]} 38...
Ke8 {[%clk 0:00:47.2]} 39. Qxc6+ {[%clk 0:00:40.1]} 39... Kf7 {[%clk 0:00:46.6]}
40. Qf6+ {[%clk 0:00:39.5]} 40... Kg8 {[%clk 0:00:45.1]} 41. Qxf8+ {[%clk
0:00:35.9]} 41... Kxf8 {[%clk 0:00:44.8]} 42. Kf2 {[%clk 0:00:36.8]} 42... Kf7
{[%clk 0:00:45.1]} 43. Nc7 {[%clk 0:00:36.2]} 43... Kf6 {[%clk 0:00:42.2]} 44.
Nxa6 {[%clk 0:00:36.2]} 44... Ke5 {[%clk 0:00:42.4]} 45. a4 {[%clk 0:00:36.4]}
45... bxa4 {[%clk 0:00:38.9]} 46. bxa4 {[%clk 0:00:37.3]} 46... g5 {[%clk
0:00:37.8]} 47. Kf3 {[%clk 0:00:36.8]} 47... h5 {[%clk 0:00:37.8]} 48. a5 {[%clk
0:00:37]} 48... g4+ {[%clk 0:00:36.5]} 49. hxg4 {[%clk 0:00:36.9]} 49... h4
{[%clk 0:00:36.3]} 50. g5 {[%clk 0:00:36.9]} 50... h3 {[%clk 0:00:36.8]} 51.
gxh3 {[%clk 0:00:36.9]} 1-0

[Event "*** Titled Tuesday Blitz"]
[Site "Chess.com"]
[Date "2020.03.03"]
[Round "8"]
[White "saraswathii"]
[Black "chesstatour"]
[Result "0-1"]
[WhiteElo "2204"]
[BlackElo "2069"]
[TimeControl "180+1"]
[EndTime "14:34:44 PST"]
[Termination "chesstatour won on time"]

1. e4 {[%clk 0:03:00.4]} 1... c6 {[%clk 0:02:59.2]} 2. d3 {[%clk 0:03:00.5]}
2... d5 {[%clk 0:02:59.9]} 3. Nd2 {[%clk 0:03:01]} 3... e5 {[%clk 0:02:57.5]} 4.
Ngf3 {[%clk 0:02:54.2]} 4... Bd6 {[%clk 0:02:17.9]} 5. g3 {[%clk 0:02:41.9]}
5... f5 {[%clk 0:02:13.8]} 6. exf5 {[%clk 0:02:40.4]} 6... Bxf5 {[%clk
0:02:10.8]} 7. Bg2 {[%clk 0:02:41.3]} 7... Nf6 {[%clk 0:02:07]} 8. O-O {[%clk
0:02:39.3]} 8... O-O {[%clk 0:02:06.8]} 9. Qe2 {[%clk 0:02:14]} 9... Nbd7 {[%clk
0:01:52.1]} 10. Re1 {[%clk 0:01:58.2]} 10... Qc7 {[%clk 0:01:40.2]} 11. c3
{[%clk 0:01:49.7]} 11... Rae8 {[%clk 0:01:37.2]} 12. Nh4 {[%clk 0:01:39]} 12...
Bg4 {[%clk 0:01:27.6]} 13. Bf3 {[%clk 0:01:35.1]} 13... Be6 {[%clk 0:01:17.7]}
14. Bg2 {[%clk 0:01:10]} 14... Re7 {[%clk 0:00:51.3]} 15. Qd1 {[%clk 0:01:06]}
15... Rfe8 {[%clk 0:00:48.7]} 16. Nf1 {[%clk 0:00:53.8]} 16... Nf8 {[%clk
0:00:35.8]} 17. Ne3 {[%clk 0:00:45.4]} 17... Qc8 {[%clk 0:00:35.6]} 18. Nf3
{[%clk 0:00:37.6]} 18... Bh3 {[%clk 0:00:33.3]} 19. Nh4 {[%clk 0:00:27.7]} 19...
Be6 {[%clk 0:00:26.6]} 20. Qf3 {[%clk 0:00:21.7]} 20... Rf7 {[%clk 0:00:23.3]}
21. Qe2 {[%clk 0:00:18.9]} 21... Bg4 {[%clk 0:00:16.6]} 22. Nxg4 {[%clk
0:00:18.3]} 22... Nxg4 {[%clk 0:00:16.3]} 23. Bh3 {[%clk 0:00:18]} 23... h5
{[%clk 0:00:09.9]} 24. f3 {[%clk 0:00:17.6]} 24... g5 {[%clk 0:00:09.8]} 25.
Bxg5 {[%clk 0:00:13.4]} 25... e4 {[%clk 0:00:05.6]} 26. fxg4 {[%clk 0:00:12.5]}
26... Re5 {[%clk 0:00:01.5]} 0-1

[Event "*** Titled Tuesday Blitz"]
[Site "Chess.com"]
[Date "2020.03.03"]
[Round "8"]
[White "Gentlejimmy7"]
[Black "ShahMatKanal"]
[Result "1-0"]
[WhiteElo "2700"]
[BlackElo "2527"]
[TimeControl "180+1"]
[EndTime "14:34:45 PST"]
[Termination "Gentlejimmy7 won by checkmate"]

1. d4 {[%clk 0:03:00.9]} 1... Nf6 {[%clk 0:02:58.9]} 2. Nf3 {[%clk 0:03:01.3]}
2... e6 {[%clk 0:02:49]} 3. g3 {[%clk 0:03:00.9]} 3... b5 {[%clk 0:02:47.8]} 4.
Bg2 {[%clk 0:03:01.3]} 4... Bb7 {[%clk 0:02:48.3]} 5. O-O {[%clk 0:03:02.2]}
5... Be7 {[%clk 0:02:48.3]} 6. Na3 {[%clk 0:03:02.7]} 6... a6 {[%clk 0:02:46.4]}
7. c4 {[%clk 0:02:54.6]} 7... Bxa3 {[%clk 0:02:37.7]} 8. bxa3 {[%clk 0:02:55.5]}
8... bxc4 {[%clk 0:02:37.6]} 9. Qa4 {[%clk 0:02:47.1]} 9... Bd5 {[%clk
0:02:31.7]} 10. Ne5 {[%clk 0:02:45.8]} 10... O-O {[%clk 0:02:25.6]} 11. Nxc4
{[%clk 0:02:45.2]} 11... Nc6 {[%clk 0:02:12.4]} 12. Rd1 {[%clk 0:02:41.7]} 12...
Qb8 {[%clk 0:02:07.6]} 13. Bg5 {[%clk 0:02:36.8]} 13... Qb5 {[%clk 0:01:59]} 14.
Qxb5 {[%clk 0:02:31.4]} 14... axb5 {[%clk 0:01:59.9]} 15. Ne5 {[%clk 0:02:28]}
15... Rxa3 {[%clk 0:01:47.7]} 16. Bxf6 {[%clk 0:02:22.1]} 16... Bxg2 {[%clk
0:01:10.1]} 17. Nxd7 {[%clk 0:02:07.7]} 17... Rfa8 {[%clk 0:00:58.3]} 18. Kxg2
{[%clk 0:02:05.2]} 18... gxf6 {[%clk 0:00:58]} 19. Nxf6+ {[%clk 0:01:58.3]}
19... Kg7 {[%clk 0:00:58.4]} 20. Nh5+ {[%clk 0:01:55.8]} 20... Kh6 {[%clk
0:00:57.1]} 21. Nf4 {[%clk 0:01:51.9]} 21... Nb4 {[%clk 0:00:44.5]} 22. Rab1
{[%clk 0:01:46.8]} 22... R8a4 {[%clk 0:00:42.8]} 23. Rdc1 {[%clk 0:01:40.8]}
23... c6 {[%clk 0:00:42.6]} 24. e3 {[%clk 0:01:32.2]} 24... Rxa2 {[%clk
0:00:41.8]} 25. Rc5 {[%clk 0:01:29.2]} 25... Rd2 {[%clk 0:00:32.4]} 26. Kf3
{[%clk 0:01:22.2]} 26... f5 {[%clk 0:00:25.3]} 27. Nxe6 {[%clk 0:01:19.1]} 27...
Nd3 {[%clk 0:00:21.8]} 28. Rxf5 {[%clk 0:01:15.8]} 28... Rxf2+ {[%clk
0:00:20.7]} 29. Ke4 {[%clk 0:01:16.2]} 29... Rxf5 {[%clk 0:00:11.2]} 30. Kxf5
{[%clk 0:01:17.1]} 30... b4 {[%clk 0:00:09.7]} 31. Nf4 {[%clk 0:01:08.9]} 31...
Nf2 {[%clk 0:00:06.4]} 32. e4 {[%clk 0:01:02.7]} 32... Kg7 {[%clk 0:00:04.3]}
33. e5 {[%clk 0:01:02.4]} 33... h5 {[%clk 0:00:04.1]} 34. e6 {[%clk 0:01:01]}
34... Kf8 {[%clk 0:00:03.6]} 35. Nxh5 {[%clk 0:00:58]} 35... Ra5+ {[%clk
0:00:02.7]} 36. Kg6 {[%clk 0:00:54.5]} 36... Rb5 {[%clk 0:00:03]} 37. Rf1 {[%clk
0:00:53.6]} 37... Ke7 {[%clk 0:00:03.1]} 38. Rxf2 {[%clk 0:00:51.7]} 38... b3
{[%clk 0:00:04]} 39. Ng7 {[%clk 0:00:47.5]} 39... b2 {[%clk 0:00:03.3]} 40. Rf7+
{[%clk 0:00:48]} 40... Kd8 {[%clk 0:00:02.3]} 41. e7+ {[%clk 0:00:47.9]} 41...
Kc8 {[%clk 0:00:01.2]} 42. e8=Q# {[%clk 0:00:48.8]} 1-0

[Event "*** Titled Tuesday Blitz"]
[Site "Chess.com"]
[Date "2020.03.03"]
[Round "8"]
[White "GMKrikor"]
[Black "Hasangatin_Ramil"]
[Result "0-1"]
[WhiteElo "2793"]
[BlackElo "2576"]
[TimeControl "180+1"]
[EndTime "14:34:48 PST"]
[Termination "Hasangatin_Ramil won by resignation"]

1. Nf3 {[%clk 0:03:00.9]} 1... d5 {[%clk 0:02:58.5]} 2. c4 {[%clk 0:03:01]} 2...
d4 {[%clk 0:02:58.6]} 3. b4 {[%clk 0:03:01.2]} 3... f6 {[%clk 0:02:57.5]} 4. e3
{[%clk 0:03:00.3]} 4... dxe3 {[%clk 0:02:54.8]} 5. fxe3 {[%clk 0:02:58.4]} 5...
e5 {[%clk 0:02:55]} 6. c5 {[%clk 0:02:50.5]} 6... Be6 {[%clk 0:02:52.7]} 7. d4
{[%clk 0:02:46.4]} 7... e4 {[%clk 0:02:51.3]} 8. Nfd2 {[%clk 0:02:36.1]} 8... f5
{[%clk 0:02:51.2]} 9. Nc3 {[%clk 0:02:36.8]} 9... Nf6 {[%clk 0:02:51.2]} 10. Nc4
{[%clk 0:02:30.5]} 10... g6 {[%clk 0:02:38.1]} 11. Ne5 {[%clk 0:02:17.3]} 11...
Bg7 {[%clk 0:02:38.1]} 12. Bc4 {[%clk 0:02:01.1]} 12... Bxc4 {[%clk 0:02:35.9]}
13. Nxc4 {[%clk 0:02:02]} 13... Nd5 {[%clk 0:02:31.6]} 14. Qb3 {[%clk
0:01:57.6]} 14... Nxc3 {[%clk 0:02:29.4]} 15. Qxc3 {[%clk 0:01:58]} 15... O-O
{[%clk 0:02:27.9]} 16. O-O {[%clk 0:01:52.2]} 16... Qd5 {[%clk 0:02:26.2]} 17.
Bb2 {[%clk 0:01:44.2]} 17... Nd7 {[%clk 0:02:22.9]} 18. Qb3 {[%clk 0:01:43]}
18... Nf6 {[%clk 0:02:20.8]} 19. a4 {[%clk 0:01:40.8]} 19... Ng4 {[%clk
0:02:09.6]} 20. Qc3 {[%clk 0:01:00]} 20... Rad8 {[%clk 0:02:05.5]} 21. Rad1
{[%clk 0:00:59.6]} 21... h5 {[%clk 0:01:54.8]} 22. h3 {[%clk 0:00:57.3]} 22...
Nf6 {[%clk 0:01:54.1]} 23. Ne5 {[%clk 0:00:48.9]} 23... Kh7 {[%clk 0:01:54.4]}
24. Qc2 {[%clk 0:00:40.1]} 24... Bh6 {[%clk 0:01:49.5]} 25. Qf2 {[%clk
0:00:38.3]} 25... Qe6 {[%clk 0:01:45.9]} 26. Bc1 {[%clk 0:00:33.3]} 26... Nd5
{[%clk 0:01:45.6]} 27. Bd2 {[%clk 0:00:33.8]} 27... Bg7 {[%clk 0:01:39.2]} 28.
Nc4 {[%clk 0:00:31.8]} 28... g5 {[%clk 0:01:21.7]} 29. Qe2 {[%clk 0:00:29]}
29... g4 {[%clk 0:01:15.9]} 30. Be1 {[%clk 0:00:29.2]} 30... Bh6 {[%clk
0:01:07.6]} 31. Kh1 {[%clk 0:00:27]} 31... f4 {[%clk 0:01:05.3]} 32. exf4 {[%clk
0:00:21.1]} 32... Nxf4 {[%clk 0:01:06.2]} 33. Qc2 {[%clk 0:00:18.1]} 33... gxh3
{[%clk 0:01:04.2]} 34. g3 {[%clk 0:00:18.6]} 34... Nd3 {[%clk 0:00:59.7]} 35.
Rg1 {[%clk 0:00:11.1]} 35... Rxd4 {[%clk 0:00:48.7]} 36. Na5 {[%clk 0:00:04.5]}
36... e3 {[%clk 0:00:47.7]} 37. Qe2 {[%clk 0:00:04.3]} 37... Qe4+ {[%clk
0:00:47.7]} 38. Kh2 {[%clk 0:00:04.9]} 38... Nxe1 {[%clk 0:00:43.9]} 39. Rxd4
{[%clk 0:00:02.6]} 39... Nf3+ {[%clk 0:00:42.7]} 40. Kh1 {[%clk 0:00:01.4]} 0-1